bitfinex/quotes_ETHUSD_20230119
["timestamp","ask_amount","ask_price","bid_price","bid_amount"]
[1674171382637,17.07433752,1551.2,1551.1,0.74000749]
[1674171383421,17.47926946,1551.2,1551.1,0.74000749]
[1674171384524,18.68508963,1551.2,1551.1,0.74000749]
[1674171384839,17.47926946,1551.2,1551.1,0.74000749]
[1674171386693,18.20141304,1551.2,1551.1,0.74000749]
[1674171387571,17.47926946,1551.2,1551.1,0.74000749]
[1674171387765,17.96276946,1551.2,1551.1,0.74000749]
[1674171387980,17.96245838,1551.2,1551.1,0.74000749]
[1674171388309,18.68451257,1551.2,1551.1,0.74000749]
[1674171388481,17.96245838,1551.2,1551.1,0.74000749]
[1674171388671,16.30783752,1551.2,1551.1,0.74000749]
[1674171388883,16.71243904,1551.2,1551.1,0.74000749]
[1674171389582,16.71233901,1551.2,1551.1,0.74000749]
[1674171389937,16.71233848,1551.2,1551.1,0.74000749]
[1674171390309,16.71234439,1551.2,1551.1,0.74000749]
[1674171390670,17.43429569,1551.2,1551.1,0.74000749]
[1674171393300,18.44853511,1551.2,1551.1,0.74000749]
[1674171393538,19.02375003,1551.2,1551.1,0.74000749]
[1674171393756,23.3749171,1551.2,1551.1,0.74000749]
[1674171394736,19.53575003,1551.2,1551.1,0.74000749]
[1674171397970,20.8869171,1551.2,1551.1,0.74000749]
[1674171398600,23.82222181,1551.2,1551.1,0.10189062]
[1674171398917,23.82222181,1551.2,1551.1,0.60189062]
[1674171399451,23.82222181,1551.2,1551.1,0.5]
[1674171399755,25.51118065,1551.2,1551.1,0.5]
[1674171400123,23.82222181,1551.2,1551.1,0.5]
[1674171400386,25.51118065,1551.2,1551.1,0.5]
[1674171400709,23.82222181,1551.2,1551.1,0.5]
[1674171401964,9.67422218,1551.1,1551.0,0.108]
[1674171402173,41.16884444,1551.1,1551.0,0.108]
[1674171402485,41.89079574,1551.1,1551.0,0.108]
[1674171403979,43.24196281,1551.1,1551.0,0.108]
[1674171404548,43.24196281,1551.1,1550.3,7.84927881]
[1674171404700,0.5,1550.9,1550.3,7.84927881]
[1674171404908,19.34583,1550.8,1550.3,7.84927881]
[1674171405119,19.35183,1550.8,1550.3,7.84927881]
[1674171415305,12.90322,1550.8,1550.4,3.29174759]
[1674171415471,6.45461,1550.8,1550.5,0.32917476]
[1674171415679,0.006,1550.8,1550.5,4.12092235]
[1674171415996,16.35524,1550.9,1550.5,3.62092235]
[1674171416215,6.45394,1550.9,1550.5,10.07042235]
[1674171416434,6.45394,1550.9,1550.6,1.00704223]
[1674171416999,6.45394,1550.9,1550.6,1.25704223]
[1674171421345,6.45394,1550.9,1550.6,0.25]
[1674171424238,6.45394,1550.9,1550.6,0.24680939]
[1674171426533,0.006,1550.9,1550.7,3.29174759]
[1674171426744,0.5436,1551.0,1550.7,9.74025759]
[1674171426745,0.4836,1551.0,1550.7,9.74025759]
[1674171426957,10.1501,1551.1,1550.8,0.97402576]
[1674171427206,10.0901,1551.1,1550.8,0.97402576]
[1674171427579,10.0901,1551.1,1550.8,1.22402576]
[1674171428060,10.0901,1551.1,1550.8,0.25]
[1674171431320,0.006,1551.1,1550.9,3.29174759]
[1674171431634,0.03809158,1551.2,1550.9,9.73950759]
[1674171431801,0.03809158,1551.2,1550.9,9.83550759]
[1674171432228,0.03809158,1551.2,1550.9,10.08550759]
[1674171432578,0.03809158,1551.2,1550.9,12.40870735]
[1674171434320,0.03809158,1551.2,1550.9,12.40670735]
[1674171434528,0.03809158,1551.2,1550.9,12.40870735]
[1674171443259,0.03809158,1551.2,1550.9,10.08550759]
[1674171444453,0.03809158,1551.2,1550.9,0.346]
[1674171444647,0.03809158,1551.2,1550.9,0.25]
[1674171444648,13.41498158,1551.2,1550.9,0.25]
[1674171444816,13.61188547,1551.2,1550.9,0.25]
[1674171445024,13.61188547,1551.2,1550.9,0.24727799]
[1674171445292,1.36118855,1551.1,1550.9,0.24727799]
[1674171445455,7.80847855,1551.1,1550.9,0.24727799]
[1674171445675,7.81447855,1551.1,1550.9,0.24727799]
[1674171446108,7.81447855,1551.1,1550.9,0.49727799]
[1674171446323,14.26176855,1551.1,1550.9,0.49727799]
[1674171446498,7.87362686,1551.0,1550.9,0.49727799]
[1674171446711,7.87962686,1551.0,1550.9,0.49727799]
[1674171449497,15.3844866,1551.0,1550.9,0.49727799]
[1674171449651,15.8680866,1551.0,1550.9,0.49727799]
[1674171450128,25.54742072,1551.0,1550.9,0.49727799]
[1674171450286,26.25334261,1551.0,1550.9,0.49727799]
[1674171450703,29.88229411,1551.0,1550.9,0.49727799]
[1674171450913,32.88229411,1551.0,1550.9,0.49727799]
[1674171451332,34.23346118,1551.0,1550.9,0.49727799]
[1674171451821,0.5,1550.9,1550.7,0.112]
[1674171452033,19.34757,1550.6,1550.3,0.05627881]
[1674171452197,19.35357,1550.6,1550.3,0.05627881]
[1674171452742,6.44994,1550.4,1550.3,0.05627881]
[1674171452952,7.79428,1550.4,1550.3,0.05627881]
[1674171454291,14.24422,1550.4,1550.3,0.05627881]
[1674171454720,14.72802,1550.4,1550.3,0.05627881]
[1674171465805,6.45594,1550.4,1550.3,0.05627881]
[1674171469021,0.006,1550.4,1550.3,0.92527881]
[1674171469335,28.54166,1550.5,1550.3,0.92527881]
[1674171470052,18.62116,1550.5,1550.3,0.92527881]
[1674171471221,18.13736,1550.5,1550.3,0.92527881]
[1674171471539,18.13736,1550.5,1550.3,0.05627881]
[1674171474569,18.13434103,1550.5,1550.3,0.05627881]
[1674171476169,11.6877,1550.5,1550.3,0.05627881]
[1674171490255,18.13732,1550.5,1550.3,0.05627881]
[1674171490405,20.997204,1550.5,1550.3,0.05627881]
[1674171491076,27.446824,1550.5,1550.3,0.05627881]
[1674171492821,28.82853372,1550.5,1550.3,0.05627881]
[1674171493477,0.5,1550.4,1550.3,0.05627881]
[1674171493689,16.33273337,1550.4,1550.3,0.05627881]
[1674171493903,16.33873337,1550.4,1550.3,0.05627881]
[1674171495670,25.76073337,1550.4,1550.3,0.05627881]
[1674171499082,25.76073337,1550.4,1550.3,0.05401556]
[1674171499304,25.74453337,1550.4,1550.3,0.05401556]
[1674171499926,26.80280034,1550.4,1550.3,0.05401556]
[1674171500289,27.50961778,1550.4,1550.3,0.05401556]
[1674171500607,26.80280034,1550.4,1550.3,0.05401556]
[1674171500864,26.31900034,1550.4,1550.3,0.05401556]
[1674171502174,27.02573662,1550.4,1550.3,0.05401556]
[1674171503326,26.31900034,1550.4,1550.3,0.05401556]
[1674171504997,27.0257003,1550.4,1550.3,0.05401556]
[1674171505184,27.02570041,1550.4,1550.3,0.05401556]
[1674171505417,26.31900034,1550.4,1550.3,0.05401556]
[1674171507891,27.02554391,1550.4,1550.3,0.05401556]
[1674171508106,26.31900034,1550.4,1550.3,0.05401556]
[1674171511065,27.02537913,1550.4,1550.3,0.05401556]
[1674171512218,30.31712672,1550.4,1550.3,0.05401556]
[1674171512475,31.32995028,1550.4,1550.3,0.05401556]
[1674171512694,34.32995028,1550.4,1550.3,0.05401556]
[1674171513387,33.65502612,1550.4,1550.3,0.05401556]
[1674171513593,34.13882612,1550.4,1550.3,0.05401556]
[1674171514356,41.92536641,1550.4,1550.3,0.05401556]
[1674171514567,42.15536641,1550.4,1550.3,0.05401556]
[1674171515273,42.51172321,1550.4,1550.3,0.05401556]
[1674171515492,40.82361578,1550.4,1550.3,0.05401556]
[1674171515702,40.59361578,1550.4,1550.3,0.05401556]
[1674171516520,29.8034894,1550.4,1550.3,0.05401556]
[1674171516729,28.74453337,1550.4,1550.3,0.05401556]
[1674171517150,25.74453337,1550.4,1550.3,0.05401556]
[1674171517570,25.26073337,1550.4,1550.3,0.05401556]
[1674171518097,25.25871659,1550.4,1550.3,0.05401556]
[1674171519520,25.93432981,1550.4,1550.3,0.05401556]
[1674171519904,26.31759137,1550.4,1550.3,0.05401556]
[1674171521788,27.02411693,1550.4,1550.3,0.05401556]
[1674171523642,26.31759137,1550.4,1550.3,0.05401556]
[1674171523798,25.93432981,1550.4,1550.3,0.05401556]
[1674171524008,25.25871659,1550.4,1550.3,0.05401556]
[1674171524448,26.31767394,1550.4,1550.3,0.05401556]
[1674171525899,27.02451758,1550.4,1550.3,0.05401556]
[1674171527386,28.03780681,1550.4,1550.3,0.05401556]
[1674171527812,31.3295544,1550.4,1550.3,0.05401556]
[1674171528159,30.99108337,1550.4,1550.3,0.05401556]
[1674171528487,32.00550656,1550.4,1550.3,0.05401556]
[1674171528651,41.6700158,1550.4,1550.3,0.05401556]
[1674171528847,42.1538158,1550.4,1550.3,0.05401556]
[1674171529309,43.84277464,1550.4,1550.3,0.05401556]
[1674171531650,42.49234322,1550.4,1550.3,0.05401556]
[1674171532326,42.49234322,1550.4,1550.3,5.56e-06]
[1674171534586,33.46611444,1550.2,1550.1,0.06326284]
[1674171534740,41.7295919,1550.2,1550.1,0.06326284]
[1674171534951,42.43643554,1550.2,1550.1,0.06326284]
[1674171535403,64.54503353,1550.2,1550.1,0.06326284]
[1674171535791,63.53103554,1550.2,1550.1,0.06326284]
[1674171536053,71.06740541,1550.2,1550.1,0.06326284]
[1674171536370,70.05334183,1550.2,1550.1,0.06326284]
[1674171537300,71.06708955,1550.2,1550.1,0.06326284]
[1674171538110,69.71470381,1550.2,1550.1,0.06326284]
[1674171538319,63.36857537,1550.2,1550.1,0.06326284]
[1674171538530,59.35482765,1550.2,1550.1,0.06326284]
[1674171538790,59.35283321,1550.2,1550.1,0.06326284]
[1674171540467,60.36658093,1550.2,1550.1,0.06326284]
[1674171547157,61.27309511,1550.2,1550.1,0.06326284]
[1674171547578,67.05134739,1550.2,1550.1,0.06326284]
[1674171547883,68.06478403,1550.2,1550.1,0.06326284]
[1674171548084,68.06463871,1550.2,1550.1,0.06326284]
[1674171553784,66.71225297,1550.2,1550.1,0.06326284]
[1674171554018,68.06463871,1550.2,1550.1,0.06326284]
[1674171557346,68.0645904,1550.2,1550.1,0.06326284]
[1674171557553,67.05134739,1550.2,1550.1,0.06326284]
[1674171557816,68.06459703,1550.2,1550.1,0.06326284]
[1674171558499,68.06459703,1550.2,1550.1,0.06097792]
[1674171558500,67.05134739,1550.2,1550.1,0.06097792]
[1674171559813,68.74182957,1550.2,1550.1,0.06097792]
[1674171559984,67.38944383,1550.2,1550.1,0.00959094]
[1674171560198,71.04637626,1550.2,1550.1,0.00959094]
[1674171563865,69.35589408,1550.2,1550.0,0.05961337]
[1674171564103,36.40859663,1550.1,1550.0,0.05961337]
[1674171564312,35.93069663,1550.1,1550.0,0.05961337]
[1674171564529,35.236585,1550.1,1550.0,0.05961337]
[1674171564718,36.58749229,1550.1,1550.0,0.05961337]
[1674171565332,36.58749229,1550.1,1549.9,0.05627369]
[1674171565333,35.236585,1550.1,1549.9,0.05627369]
[1674171565541,28.3593528,1550.0,1549.9,0.05627369]
[1674171565806,41.5389528,1550.0,1549.9,0.05627369]
[1674171566015,42.19588523,1550.0,1549.9,0.05627369]
[1674171566807,43.20921208,1550.0,1549.9,0.05627369]
[1674171567262,42.19588523,1550.0,1549.9,0.05627369]
[1674171571610,43.88469031,1550.0,1549.9,0.05627369]
[1674171572276,42.19588523,1550.0,1549.9,0.05627369]
[1674171572486,43.88469031,1550.0,1549.9,0.05627369]
[1674171572861,42.19588523,1550.0,1549.9,0.05627369]
[1674171573438,43.88469031,1550.0,1549.9,0.05627369]
[1674171573762,42.19588523,1550.0,1549.9,0.05627369]
[1674171575178,34.85525533,1550.0,1549.9,0.05627369]
[1674171575317,31.92441874,1550.0,1549.9,0.05627369]
[1674171576096,30.91062577,1550.0,1549.9,0.05627369]
[1674171577966,14.29038808,1550.0,1549.9,0.05627369]
[1674171578317,13.58509041,1550.0,1549.9,0.05627369]
[1674171578477,13.9666138,1550.0,1549.9,0.05627369]
[1674171578687,13.58509041,1550.0,1549.9,0.05627369]
[1674171579156,12.90922,1550.0,1549.9,0.05627369]
[1674171579373,13.58509041,1550.0,1549.9,0.05627369]
[1674171579533,13.96666202,1550.0,1549.9,0.05627369]
[1674171580468,13.58509041,1550.0,1549.9,0.05627369]
[1674171580786,12.90922,1550.0,1549.9,0.05627369]
[1674171582200,13.58509041,1550.0,1549.9,0.05627369]
[1674171582358,13.96671629,1550.0,1549.9,0.05627369]
[1674171582690,12.90922,1550.0,1549.9,0.05627369]
[1674171586669,13.96681432,1550.0,1549.9,0.05627369]
[1674171588562,16.08951328,1550.0,1549.9,0.05627369]
[1674171588812,19.08951328,1550.0,1549.9,0.05627369]
[1674171589049,19.79481095,1550.0,1549.9,0.05312251]
[1674171589205,19.08951328,1550.0,1549.9,0.05312251]
[1674171592771,19.79481095,1550.0,1549.9,0.05312251]
[1674171593027,19.08951328,1550.0,1549.9,0.05312251]
[1674171594802,20.10330625,1550.0,1549.9,0.05312251]
[1674171595554,19.42743584,1550.0,1549.9,0.05312251]
[1674171595770,29.49913584,1550.0,1549.9,0.05312251]
[1674171595919,30.20443351,1550.0,1549.9,0.05312251]
[1674171596342,41.93033351,1550.0,1549.9,0.05312251]
[1674171599112,45.2220811,1550.0,1549.9,0.05312251]
[1674171599947,45.21906347,1550.0,1549.9,0.05312251]
[1674171602665,45.89531319,1550.0,1549.9,0.05312251]
[1674171603141,45.21906347,1550.0,1549.9,0.05312251]
[1674171607423,46.57344195,1550.0,1549.9,0.05312251]
[1674171610391,45.55964898,1550.0,1549.9,0.05312251]
[1674171613139,47.24845406,1550.0,1549.9,0.05312251]
[1674171613979,45.89971851,1550.0,1549.9,0.05312251]
[1674171614319,45.89988839,1550.0,1549.9,0.05312251]
[1674171614740,45.22312959,1550.0,1549.9,0.05312251]
[1674171618779,46.57449044,1550.0,1549.9,0.05312251]
[1674171619261,45.55964898,1550.0,1549.9,0.05312251]
[1674171621877,45.55964898,1550.0,1549.9,0.05002741]
[1674171622570,45.22342558,1550.0,1549.9,0.05002741]
[1674171622931,35.76534066,1550.0,1549.9,0.05002741]
[1674171623154,13.96774066,1550.0,1549.9,0.05002741]
[1674171627709,14.98287811,1550.0,1549.9,0.05002741]
[1674171630922,14.30608136,1550.0,1549.9,0.05002741]
[1674171633599,15.65744221,1550.0,1549.9,0.05002741]
[1674171633809,18.75890738,1550.0,1549.9,0.05002741]
[1674171644069,17.40754653,1550.0,1549.9,0.05002741]
[1674171645178,18.75890738,1550.0,1549.9,0.05002741]
[1674171646233,18.75890738,1550.0,1549.9,0.04700873]
[1674171649213,17.06927713,1550.0,1549.9,0.04700873]
[1674171649590,18.08441458,1550.0,1549.9,0.04700873]
[1674171650265,17.06927713,1550.0,1549.9,0.04700873]
[1674171651795,18.08441458,1550.0,1549.9,0.04700873]
[1674171653320,17.40754653,1550.0,1549.9,0.04700873]
[1674171654642,18.75890738,1550.0,1549.9,0.04700873]
[1674171662366,17.74376993,1550.0,1549.9,0.04700873]
[1674171665252,18.75883133,1550.0,1549.9,0.04700873]
[1674171665568,17.74376993,1550.0,1549.9,0.04700873]
[1674171669165,17.74376993,1550.0,1549.9,0.04334582]
[1674171689184,17.74011306,1550.0,1549.9,0.04334582]
[1674171689403,17.74211306,1550.0,1549.9,0.04334582]
[1674171690432,14.64064789,1550.0,1549.9,0.04334582]
[1674171690757,14.30407367,1550.0,1549.9,0.04334582]
[1674171692704,15.65543452,1550.0,1549.9,0.04334582]
[1674171693121,14.98065976,1550.0,1549.9,0.04334582]
[1674171693334,14.30407367,1550.0,1549.9,0.04334582]
[1674171694682,15.65543452,1550.0,1549.9,0.04334582]
[1674171696270,18.75669892,1550.0,1549.9,0.04334582]
[1674171696610,17.74191229,1550.0,1549.9,0.04334582]
[1674171705806,19.43071737,1550.0,1549.9,0.04334582]
[1674171706023,40.22341737,1550.0,1549.9,0.04334582]
[1674171706337,40.9294418,1550.0,1549.9,0.04334582]
[1674171712202,40.9294418,1550.0,1549.9,0.03988679]
[1674171714126,40.25478564,1550.0,1549.9,0.03988679]
[1674171716965,40.2548535,1550.0,1549.9,0.03988679]
[1674171717175,39.24063672,1550.0,1549.9,0.03988679]
[1674171723276,40.9294418,1550.0,1549.9,0.03988679]
[1674171723972,39.24063672,1550.0,1549.9,0.03988679]
[1674171725052,40.9294418,1550.0,1549.9,0.03988679]
[1674171728040,42.86982854,1550.0,1549.9,0.03988679]
[1674171728250,45.8713657,1550.0,1549.9,0.03988679]
[1674171728464,46.3552657,1550.0,1549.9,0.03988679]
[1674171728897,44.66646062,1550.0,1549.9,0.03988679]
[1674171729791,45.32339305,1550.0,1549.9,0.03988679]
[1674171731071,47.01219252,1550.0,1549.9,0.03988679]
[1674171731414,46.35514737,1550.0,1549.9,0.03988679]
[1674171731734,52.34539305,1550.0,1549.9,0.00793795]
[1674171731878,0.5,1549.9,1549.8,0.04948122]
[1674171732087,27.89255713,1549.9,1549.8,0.04948122]
[1674171732302,35.83138956,1549.9,1549.8,0.04948122]
[1674171733203,0.549,1549.8,1549.5,0.06899601]
[1674171733391,1.34956836,1549.6,1549.5,0.06899601]
[1674171733564,21.25388038,1549.6,1549.5,0.06899601]
[1674171733770,0.5,1549.5,1549.3,0.05627369]
[1674171734099,23.32884545,1549.4,1549.3,0.05627369]
[1674171734319,23.33396433,1549.4,1549.3,0.05627369]
[1674171734523,40.83436963,1549.4,1549.3,0.05627369]
[1674171734942,41.31846963,1549.4,1549.3,0.05627369]
[1674171735137,40.16048289,1549.4,1549.3,0.05627369]
[1674171735364,40.83436963,1549.4,1549.3,0.05627369]
[1674171735997,51.82171156,1549.4,1549.3,0.05627369]
[1674171736474,50.47998289,1549.4,1549.3,0.05627369]
[1674171736626,51.13691532,1549.4,1549.3,0.05627369]
[1674171737574,51.81080206,1549.4,1549.3,0.05627369]
[1674171738471,51.13691532,1549.4,1549.3,0.05627369]
[1674171739522,57.92891532,1549.4,1549.3,0.05627369]
[1674171739676,58.60280206,1549.4,1549.3,0.05627369]
[1674171740394,57.92891532,1549.4,1549.3,0.05627369]
[1674171742216,58.60280206,1549.4,1549.3,0.05627369]
[1674171742466,60.76467363,1549.4,1549.3,0.05627369]
[1674171743009,60.09078689,1549.4,1549.3,0.05627369]
[1674171743351,13.40904,1549.3,1549.2,0.06899601]
[1674171743577,0.5,1549.2,1549.1,0.09801413]
[1674171743786,0.5,1549.2,1548.8,0.08721368]
[1674171743787,6.792,1549.0,1548.8,0.08721368]
[1674171743995,36.58770759,1548.9,1548.8,0.08721368]
[1674171744245,40.25064002,1548.9,1548.8,0.08721368]
[1674171744456,40.96494002,1548.9,1548.8,0.08377507]
[1674171744862,40.48064002,1548.9,1548.8,0.08377507]
[1674171745892,50.40544002,1548.9,1548.8,0.08377507]
[1674171749156,42.70424002,1548.9,1548.8,0.08377507]
[1674171749371,42.04730759,1548.9,1548.8,0.08377507]
[1674171749975,39.04730759,1548.9,1548.8,0.08377507]
[1674171764429,19.37457,1548.9,1548.8,0.08377507]
[1674171764620,6.46219,1548.9,1548.8,0.08377507]
[1674171764949,0.006,1548.9,1548.8,0.08377507]
[1674171765165,12.91789,1549.0,1548.8,0.08377507]
[1674171765744,0.00546179,1549.0,1548.8,0.08377507]
[1674171766002,6.46094179,1549.1,1548.8,0.74684769]
[1674171766404,0.00546179,1549.1,1548.8,0.74684769]
[1674171766611,12.91566179,1549.2,1548.8,0.74684769]
[1674171766893,12.91566179,1549.2,1548.9,0.07468477]
[1674171779357,12.91566179,1549.2,1548.8,0.74684769]
[1674171780533,12.91566179,1549.2,1548.8,0.08377507]
[1674171781354,0.5,1549.1,1548.8,0.08377507]
[1674171781676,13.41104,1549.1,1548.8,0.08377507]
[1674171781841,13.41650179,1549.1,1548.8,0.08377507]
[1674171783134,24.16510179,1549.1,1548.8,0.08377507]
[1674171783351,2.41651018,1549.0,1548.8,0.08377507]
[1674171783562,15.32850018,1549.0,1548.8,0.08377507]
[1674171783738,0.5,1548.9,1548.8,0.08377507]
[1674171784304,6.95619,1548.9,1548.8,0.08377507]
[1674171784513,6.96165179,1548.9,1548.8,0.08377507]
[1674171784726,15.15285699,1548.9,1548.8,0.08377507]
[1674171785431,18.44460458,1548.9,1548.8,0.08377507]
[1674171785959,28.34910458,1548.9,1548.8,0.08377507]
[1674171786816,28.83340458,1548.9,1548.8,0.08377507]
[1674171790036,28.83340458,1548.9,1548.8,0.08006972]
[1674171793769,25.54165699,1548.9,1548.8,0.08006972]
[1674171793959,22.82234179,1548.9,1548.8,0.08006972]
[1674171797815,6.46165179,1548.9,1548.8,0.08006972]
[1674171798017,0.00546179,1548.9,1548.8,0.08006972]
[1674171798282,10.18806179,1549.1,1548.8,0.08006972]
[1674171798649,10.18806179,1549.1,1548.8,7.20889281]
[1674171798650,0.00546179,1549.1,1548.8,7.20889281]
[1674171798866,53.77078179,1549.3,1548.8,7.30489281]
[1674171799077,23.10078179,1549.3,1548.8,7.30489281]
[1674171799298,23.00559179,1549.3,1548.8,7.30489281]
[1674171799509,23.10079179,1549.3,1548.9,0.73048928]
[1674171800493,10.19146179,1549.3,1548.9,7.18647928]
[1674171800706,10.19146179,1549.3,1548.9,7.28247928]
[1674171800913,10.19146179,1549.3,1549.0,0.72824793]
[1674171801433,10.58036179,1549.3,1549.0,0.72824793]
[1674171802430,0.48956179,1549.3,1549.0,0.72824793]
[1674171802641,0.54956179,1549.4,1549.0,13.63977793]
[1674171802899,37.67355179,1549.5,1549.1,1.36397779]
[1674171803131,17.17085179,1549.5,1549.1,1.86397779]
[1674171809622,16.68675179,1549.5,1549.2,0.5]
[1674171809831,16.68675179,1549.5,1549.2,1.38192778]
[1674171811088,16.68675179,1549.5,1549.2,0.88192778]
[1674171811803,16.68675179,1549.5,1549.1,7.91527779]
[1674171812664,16.68675179,1549.5,1549.1,0.096]
[1674171812878,16.68675179,1549.5,1549.0,7.18379793]
[1674171812879,16.68675179,1549.5,1549.0,6.55155]
[1674171814095,16.68675179,1549.5,1549.0,6.54803346]
[1674171815990,16.68675179,1549.5,1549.0,7.04803346]
[1674171816201,16.68675179,1549.5,1549.0,6.54803346]
[1674171816617,16.68675179,1549.5,1549.0,9.49701781]
[1674171816827,16.68675179,1549.5,1549.0,9.49901781]
[1674171820860,16.68675179,1549.5,1549.0,6.54803346]
[1674171820861,23.14071179,1549.5,1549.0,6.54803346]
[1674171821077,23.62481179,1549.5,1549.0,6.54803346]
[1674171821306,0.4841,1549.4,1549.0,6.54803346]
[1674171823267,23.68481179,1549.5,1549.0,6.54803346]
[1674171823565,17.17082179,1549.5,1549.1,0.65480335]
[1674171823985,17.17082179,1549.5,1549.1,1.15480335]
[1674171824547,17.17082179,1549.5,1549.1,0.65480335]
[1674171828513,17.17082179,1549.5,1549.1,1.15480335]
[1674171828980,17.17082179,1549.5,1549.1,0.65480335]
[1674171831106,17.17082179,1549.5,1549.1,1.15480335]
[1674171832283,17.17082179,1549.5,1549.1,0.65480335]
[1674171833373,10.71686179,1549.5,1549.2,0.06548034]
[1674171833623,10.71686179,1549.5,1549.2,7.02039034]
[1674171833946,10.71686179,1549.5,1549.2,7.11639034]
[1674171834522,10.23276179,1549.5,1549.2,7.11639034]
[1674171834789,10.23276179,1549.5,1549.3,0.71163903]
[1674171835103,10.23276179,1549.5,1549.2,7.11639034]
[1674171835802,10.2316891,1549.5,1549.2,6.61639034]
[1674171843668,10.90328529,1549.5,1549.2,6.61639034]
[1674171844156,10.9012361,1549.5,1549.2,6.61639034]
[1674171844453,10.9032361,1549.5,1549.2,6.61639034]
[1674171845409,10.9032361,1549.5,1549.3,0.66163903]
[1674171845564,10.9032361,1549.5,1549.2,6.61639034]
[1674171847240,10.23163991,1549.5,1549.2,6.61639034]
[1674171847760,10.9032361,1549.5,1549.2,6.61639034]
[1674171850770,10.23163991,1549.5,1549.2,13.07133034]
[1674171850984,10.23163991,1549.5,1549.3,1.30713303]
[1674171856509,10.23163991,1549.5,1549.3,7.76164303]
[1674171856738,10.23163991,1549.5,1549.3,7.85764303]
[1674171856963,10.23163991,1549.5,1549.3,8.35764303]
[1674171856964,0.00433991,1549.5,1549.3,8.35764303]
[1674171857179,11.91393991,1549.6,1549.4,0.8357643]
[1674171857683,0.00433991,1549.6,1549.5,0.79430719]
[1674171857899,0.06983378,1549.7,1549.5,9.1326375]
[1674171858207,0.06983378,1549.7,1549.6,22.14786975]
[1674171858401,0.06983378,1549.7,1549.6,22.92059541]
[1674171858611,0.06983378,1549.7,1549.6,22.24393756]
[1674171859464,0.06983378,1549.8,1549.7,0.5]
[1674171859815,0.06688185,1550.0,1549.7,16.19746759]
[1674171860049,0.06688185,1550.0,1549.9,19.35606]
[1674171860252,0.06688185,1550.0,1549.9,22.74380759]
[1674171860439,0.06688185,1550.0,1549.9,24.79204372]
[1674171864052,0.06688185,1550.0,1549.9,24.797415]
[1674171865084,0.06688185,1550.0,1549.9,27.22152767]
[1674171865419,0.06114879,1550.1,1549.9,27.22152767]
[1674171865420,0.06114879,1550.1,1550.0,14.61106997]
[1674171865613,0.06114879,1550.1,1550.0,17.93706997]
[1674171865782,0.06114879,1550.1,1550.0,22.06458186]
[1674171866464,0.06114879,1550.1,1550.0,22.54848186]
[1674171866795,0.06114879,1550.1,1550.0,22.06458186]
[1674171867676,0.08383559,1550.2,1550.1,0.5]
[1674171867888,0.08383559,1550.2,1550.1,21.97236372]
[1674171868154,0.08383559,1550.2,1550.1,22.06836372]
[1674171869145,0.08383559,1550.2,1550.1,25.06836372]
[1674171869357,0.08383559,1550.2,1550.1,25.55226372]
[1674171869695,0.08383559,1550.2,1550.1,27.97639807]
[1674171869899,0.08383559,1550.2,1550.1,25.55226372]
[1674171870249,0.08383559,1550.2,1550.1,27.97686517]
[1674171870465,0.08383559,1550.2,1550.1,25.55226372]
[1674171871007,0.06114879,1550.3,1550.2,0.5]
[1674171871162,0.06114879,1550.3,1550.2,17.75907189]
[1674171871351,0.06114879,1550.3,1550.2,20.85507189]
[1674171880264,0.11220636,1550.8,1550.3,0.51165789]
[1674171880414,0.11220636,1550.8,1550.5,19.84832]
[1674171880626,0.11220636,1550.8,1550.6,3.29174759]
[1674171880834,0.11220636,1550.8,1550.7,6.4487]
[1674171881064,0.11220636,1550.8,1550.7,6.5447]
[1674171881270,0.11220636,1550.8,1550.7,12.9934]
[1674171888206,0.11220636,1550.8,1550.7,16.28514759]
[1674171895138,0.11220636,1550.8,1550.7,18.33338372]
[1674171898212,0.11220636,1550.8,1550.7,18.56338372]
[1674171900097,0.11220636,1550.8,1550.7,18.33338372]
[1674171900301,0.11220636,1550.8,1550.7,16.28514759]
[1674171901640,0.10958138,1550.8,1550.7,16.28514759]
[1674171907967,0.08544852,1551.0,1550.7,16.28514759]
[1674171912701,0.08544852,1551.0,1550.8,3.29174759]
[1674171912917,0.08544852,1551.0,1550.8,9.73990759]
[1674171913069,0.08544852,1551.0,1550.8,9.83590759]
[1674171918326,0.75704471,1551.0,1550.8,9.83590759]
[1674171918966,0.75704471,1551.0,1550.8,0.096]
[1674171919162,0.75704471,1551.0,1550.7,12.9934]
[1674171919370,0.75704471,1551.0,1550.7,16.28514759]
[1674171919837,2.11596438,1551.0,1550.7,16.28514759]
[1674171920047,1.7691965,1551.0,1550.7,16.28514759]
[1674171920377,0.75704471,1551.0,1550.7,16.28514759]
[1674171920989,2.11598875,1551.0,1550.7,16.28514759]
[1674171921323,0.08544852,1551.0,1550.7,16.28514759]
[1674171922483,0.75704471,1551.0,1550.7,16.28514759]
[1674171923791,0.08544852,1551.0,1550.7,16.28514759]
[1674171924048,1.10377997,1551.0,1550.7,16.28514759]
[1674171924225,0.75704471,1551.0,1550.7,16.28514759]
[1674171924439,0.08544852,1551.0,1550.7,16.28514759]
[1674171924689,1.10372103,1551.0,1550.7,16.28514759]
[1674171924839,0.75704471,1551.0,1550.7,16.28514759]
[1674171930993,0.75704471,1551.0,1550.7,16.28207438]
[1674171934133,2.11601371,1551.0,1550.7,16.28207438]
[1674171934349,1.7691965,1551.0,1550.7,16.28207438]
[1674171934768,0.67159619,1550.9,1550.7,16.28207438]
[1674171935317,1.01844735,1550.9,1550.7,16.28207438]
[1674171943474,0.67159619,1550.9,1550.7,16.28207438]
[1674171943680,1.7691965,1551.0,1550.7,16.28207438]
[1674171947086,0.67159619,1550.9,1550.7,16.28207438]
[1674171948113,0.67159619,1550.9,1550.7,3.38774759]
[1674171948333,1.01823917,1550.9,1550.7,3.29174759]
[1674171952090,1.22982312,1550.9,1550.6,9.54507]
[1674171952450,0.88318014,1550.9,1550.6,12.83681759]
[1674171953045,2.24204456,1550.9,1550.6,12.83681759]
[1674171953415,1.89533193,1550.9,1550.6,12.83681759]
[1674171954361,0.18953319,1550.8,1550.6,0.096]
[1674171954524,1.20782015,1550.8,1550.4,7.21742015]
[1674171954727,8.32169117,1550.8,1550.5,0.77176656]
[1674171954977,0.83216912,1550.7,1550.5,0.77176656]
[1674171955146,0.83216912,1550.7,1550.3,8.22963137]
[1674171955358,0.83216912,1550.7,1550.4,0.77156191]
[1674171956326,7.95249531,1550.7,1550.4,0.77156191]
[1674171956513,7.24437953,1550.6,1550.4,0.77156191]
[1674171956724,7.24619151,1550.6,1550.4,0.77156191]
[1674171956923,14.3669177,1550.6,1550.3,0.096]
[1674171957128,14.3669177,1550.6,1550.1,6.54692]
[1674171957339,1.43669177,1550.5,1550.1,0.096]
[1674171957591,1.43669177,1550.5,1550.0,0.67164015]
[1674171957592,13.40006,1550.4,1550.0,0.67164015]
[1674171957781,13.40439991,1550.4,1550.0,1.44270197]
[1674171958208,0.5,1550.3,1549.9,1.76994676]
[1674171958418,0.5,1550.3,1550.0,0.77107117]
[1674171958419,6.45078,1550.2,1550.0,0.77107117]